fUST/lending_fUST_20240115
["ID","MTS","AMOUNT","RATE_DAILY","PERIOD"]
[311651041,1705281050342,-500.0,0.00028767,2]
[311651042,1705281050352,-500.0,0.00028767,2]
[311651043,1705281050362,-567.41339853,0.00028767,2]
[311651044,1705281050372,-500.0,0.00028767,2]
[311651045,1705281050381,-1158.57,0.00028767,2]
[311651046,1705281050391,-500.0,0.00028767,2]
[311651047,1705281050400,-500.0,0.00028767,2]
[311651048,1705281050410,-1358.21,0.00028767,2]
[311651049,1705281050420,-1606.58,0.00028767,2]
[311651050,1705281050429,-500.0,0.00028767,2]
[311651051,1705281050500,-626.85,0.00028767,2]
[311651052,1705281050517,-508.23488749,0.00028767,2]
[311651053,1705281050526,-972.6,0.00028767,2]
[311651054,1705281050535,-500.0,0.00028767,2]
[311651055,1705281050545,-500.0,0.00028767,2]
[311651056,1705281050554,-500.0,0.00028767,2]
[311651057,1705281050563,-500.0,0.00028767,2]
[311651058,1705281050572,-807.89,0.00028767,2]
[311651059,1705281050582,-1139.15,0.00028767,2]
[311651060,1705281050592,-500.0,0.00028767,2]
[311651061,1705281050601,-505.11,0.00028767,2]
[311651062,1705281050610,-500.0,0.00028767,2]
[311651063,1705281050619,-681.17,0.00028767,2]
[311651064,1705281050628,-500.0,0.00028767,2]
[311651065,1705281050638,-500.0,0.00028767,2]
[311651066,1705281050647,-500.0,0.00028767,2]
[311651067,1705281050656,-792.25,0.00028767,2]
[311651068,1705281050665,-500.0,0.00028767,2]
[311651069,1705281050674,-500.0,0.00028767,2]
[311651070,1705281050684,-683.68,0.00028767,2]
[311651071,1705281050695,-1205.42,0.00028767,2]
[311651072,1705281050704,-500.0,0.00028767,2]
[311651073,1705281050714,-500.0,0.00028767,2]
[311651074,1705281050724,-500.0,0.00028767,2]
[311651075,1705281050733,-155.0,0.00028767,2]
[311651076,1705281050742,-500.0,0.00028767,2]
[311651077,1705281050751,-500.0,0.00028767,2]
[311651078,1705281050760,-643.12,0.00028767,2]
[311651079,1705281050770,-2876.52,0.00028767,2]
[311651080,1705281050779,-2746.06,0.00028767,2]
[311651081,1705281050789,-720.48,0.00028767,2]
[311651082,1705281050798,-1305.35,0.00028767,2]
[311651083,1705281050807,-500.0,0.00028767,2]
[311651084,1705281050817,-998.27,0.00028767,2]
[311651085,1705281050826,-500.0,0.00028767,2]
[311651086,1705281050835,-500.0,0.00028767,2]
[311651087,1705281050844,-1274.74,0.00028767,2]
[311651088,1705281050854,-961.69,0.00028767,2]
[311651089,1705281050863,-1695.42,0.00028767,2]
[311651090,1705281050872,-500.0,0.00028767,2]
[311651091,1705281050882,-1482.79,0.00028767,2]
[311651092,1705281050891,-6992.1,0.00028767,2]
[311651093,1705281050900,-8044.07,0.00028767,2]
[311651094,1705281050910,-2794.15,0.00028767,2]
[311651095,1705281050920,-500.0,0.00028767,2]
[311651096,1705281050929,-495.97149362,0.00028767,2]
[311651097,1705281050939,-783.67,0.00028767,2]
[311651098,1705281050948,-500.0,0.00028767,2]
[311651099,1705281050958,-4514.24,0.00028767,2]
[311651100,1705281050968,-868.05,0.00028767,2]
[311651101,1705281050977,-3852.53,0.00028767,2]
[311651102,1705281050987,-500.0,0.00028767,2]
[311651103,1705281050996,-500.0,0.00028767,2]
[311651104,1705281051005,-24408.73,0.00028767,2]
[311651105,1705281051015,-15055.16,0.00028767,2]
[311651106,1705281051025,-500.0,0.00028767,2]
[311651107,1705281051035,-500.0,0.00028767,2]
[311651108,1705281051045,-500.0,0.00028767,2]
[311651109,1705281051055,-500.0,0.00028767,2]
[311651110,1705281051064,-500.0,0.00028767,2]
[311651111,1705281051073,-1871.2,0.00028767,2]
[311651112,1705281051083,-719.5,0.00028767,2]
[311651113,1705281051093,-6493.17,0.00028767,2]
[311651114,1705281051102,-500.0,0.00028767,2]
[311651115,1705281051111,-568.580842,0.00028767,2]
[311651116,1705281051120,-568.580842,0.00028767,2]
[311651117,1705281051129,-151.0,0.00028767,2]
[311651118,1705281051139,-151.0,0.00028767,2]
[311651119,1705281051147,-2430.37307,0.00028767,2]
[311651120,1705281051157,-2430.37307,0.00028767,2]
[311651121,1705281051166,-151.0,0.00028767,2]
[311651122,1705281051175,-2000.0,0.0002877,2]
[311651123,1705281051184,-2000.0,0.0002878,2]
[311651124,1705281051195,-620.38160601,0.00028786,2]
[311651125,1705281051204,-3654.777256,0.0002879,2]
[311651126,1705281051213,-151.0,0.00028799,2]
[311651127,1705281051222,-151.0,0.00028799,2]
[311651128,1705281051231,-32918.85806642,0.000288,2]
[311651129,1705281051241,-18890.13306712,0.000289,2]
[311651130,1705281051250,-568.580842,0.000289,2]
[311651131,1705281051260,-568.580842,0.000289,2]
[311651132,1705281051269,-1890.27239643,0.00028999,2]
[311651133,1705281051279,-924.31488647,0.00029,2]
[311651134,1705281051289,-2172.70348945,0.00029,2]
[311651135,1705281051299,-54272.0,0.00029,2]
[311651136,1705281051308,-831.52486926,0.00029,2]
[311651137,1705281051317,-2033.99558456,0.00029,2]
[311651138,1705281051327,-151.0,0.00029,2]
[311651139,1705281051336,-151.0,0.00029,2]
[311651140,1705281051346,-2430.37307,0.00029,2]
[311651141,1705281051356,-2430.37307,0.00029,2]
[311651142,1705281051366,-1500.0,0.00029,2]
[311651143,1705281051376,-151.0,0.00029,2]
[311651144,1705281051386,-500.0,0.00029041,2]
[311651145,1705281051396,-732.09,0.00029041,2]
[311651146,1705281051405,-505.32,0.00029041,2]
[311651147,1705281051414,-500.0,0.00029041,2]
[311651148,1705281051424,-532.87,0.00029041,2]
[311651149,1705281051434,-500.0,0.00029041,2]
[311651150,1705281051445,-500.0,0.00029041,2]
[311651151,1705281051456,-421.13655144,0.00029041,2]
[311651152,1705281051468,-1158.57,0.00029041,2]
[311651153,1705281051478,-500.0,0.00029041,2]
[311651154,1705281051487,-500.0,0.00029041,2]
[311651155,1705281051499,-1358.21,0.00029041,2]
[311651156,1705281051509,-1606.58,0.00029041,2]
[311651157,1705281051518,-500.0,0.00029041,2]
[311651158,1705281051528,-626.85,0.00029041,2]
[311651159,1705281051537,-972.6,0.00029041,2]
[311651160,1705281051547,-500.0,0.00029041,2]
[311651161,1705281051557,-500.0,0.00029041,2]
[311651162,1705281051566,-500.0,0.00029041,2]
[311651163,1705281051575,-807.89,0.00029041,2]
[311651164,1705281051585,-1139.15,0.00029041,2]
[311651165,1705281051596,-500.0,0.00029041,2]
[311651166,1705281051606,-505.11,0.00029041,2]
[311651167,1705281051616,-500.0,0.00029041,2]
[311651168,1705281051626,-681.17,0.00029041,2]
[311651169,1705281051636,-273.62365291,0.00029041,2]
[311651170,1705281051645,-500.0,0.00029041,2]
[311651171,1705281051655,-500.0,0.00029041,2]
[311651172,1705281051664,-792.25,0.00029041,2]
[311651173,1705281051674,-500.0,0.00029041,2]
[311651174,1705281051683,-510.87281,0.00029041,2]
[311651175,1705281051693,-683.68,0.00029041,2]
[311651176,1705281051702,-1205.42,0.00029041,2]
[311651177,1705281051711,-500.0,0.00029041,2]
[311651178,1705281051778,-500.0,0.00029041,2]
[311651179,1705281051789,-500.0,0.00029041,2]
[311651180,1705281051799,-500.0,0.00029041,2]
[311651181,1705281051807,-500.0,0.00029041,2]
[311651182,1705281051817,-643.12,0.00029041,2]
[311651183,1705281051826,-2876.52,0.00029041,2]
[311651184,1705281051835,-2746.06,0.00029041,2]
[311651185,1705281051845,-720.48,0.00029041,2]
[311651186,1705281051855,-1305.35,0.00029041,2]
[311651187,1705281051863,-216.63150169,0.00029041,2]
[311651188,1705281051874,-998.27,0.00029041,2]
[311651189,1705281051883,-500.0,0.00029041,2]
[311651190,1705281051892,-500.0,0.00029041,2]
[311651191,1705281051901,-1274.74,0.00029041,2]
[311651192,1705281051910,-961.69,0.00029041,2]
[311651193,1705281051920,-1695.42,0.00029041,2]
[311651194,1705281051929,-500.0,0.00029041,2]
[311651195,1705281051939,-1482.79,0.00029041,2]
[311651196,1705281051947,-6992.1,0.00029041,2]
[311651197,1705281051957,-8044.07,0.00029041,2]
[311651198,1705281051966,-2794.15,0.00029041,2]
[311651199,1705281051976,-500.0,0.00029041,2]
[311651200,1705281051985,-783.67,0.00029041,2]
[311651201,1705281051995,-500.0,0.00029041,2]
[311651202,1705281052005,-4514.24,0.00029041,2]
[311651203,1705281052014,-868.05,0.00029041,2]
[311651204,1705281052023,-3852.53,0.00029041,2]
[311651205,1705281052033,-500.0,0.00029041,2]
[311651206,1705281052042,-500.0,0.00029041,2]
[311651207,1705281052051,-18837.17976018,0.00029041,2]
[311651214,1705281618504,-213.10093744,0.00023137,2]
[311651215,1705281618526,-351.69906256,0.00023138,2]
[311651258,1705282232071,-155.03255684,0.00021141,4]
[311651259,1705282232083,-155.03255684,0.00021141,2]
[311651260,1705282232093,-1132.1029121,0.00021142,2]
[311651261,1705282232103,-162.87086897,0.00021689,2]
[311651262,1705282232113,-155.03255684,0.0002169,2]
[311651263,1705282232124,-3126.02728391,0.0002169,2]
[311651264,1705282232145,-326.9659131,0.00021691,2]
[311651265,1705282232155,-265.05974209,0.00021691,2]
[311651266,1705282232166,-155.03255684,0.00021691,2]
[311651267,1705282232176,-244.368179,0.00021697,2]
[311651268,1705282232186,-166.666666,0.00021918,2]
[311651269,1705282232196,-166.666666,0.00022431,2]
[311651270,1705282232206,-155.40846729,0.00022849,2]
[311651272,1705282232216,-155.13340073,0.00022849,2]
[311651274,1705282232228,-155.37994607,0.00022849,2]
[311651276,1705282232237,-138.77479879,0.0002285,2]
[311651278,1705282232251,-16.37543203,0.0002285,2]
[311651280,1705282232262,-155.53950982,0.0002285,2]
[311651282,1705282232273,-155.1891832,0.0002285,2]
[311651284,1705282232283,-155.38700055,0.0002285,2]
[311651286,1705282232294,-155.11769677,0.0002285,2]
[311651289,1705282232305,-155.37431966,0.0002285,2]
[311651291,1705282232315,-438.62578398,0.0002285,2]
[311651293,1705282232325,-155.4036654,0.0002285,2]
[311651295,1705282232336,-155.34124087,0.00022851,2]
[311651297,1705282232345,-41842.29484375,0.00022851,2]
[311651299,1705282232355,-155.37987387,0.00022851,2]
[311651301,1705282232364,-24900.0,0.00022852,2]
[311651303,1705282232375,-3878.6383756,0.00022938,2]
[311651305,1705282232384,-166.666666,0.00022944,2]
[311651307,1705282232394,-155.290543,0.00023138,2]
[311651309,1705282232403,-155.0615201,0.00023138,2]
[311651310,1705282232413,-166.666666,0.00023456,2]
[311651311,1705282232422,-166.666666,0.00023969,2]
[311651312,1705282232433,-166.666666,0.00024482,2]
[311651313,1705282232443,-521.10576847,0.00024555,2]
[311651314,1705282232452,-309.87604958,0.00024565,2]
[311651315,1705282232462,-4505.0327371,0.00024565,2]
[311651316,1705282232472,-168.42278428,0.00024565,2]
[311651317,1705282232481,-211.95899474,0.00025038,2]
[311651318,1705282232491,-234.61726136,0.00025039,2]
[311651319,1705282232500,-200.0,0.00025136,7]
[311651320,1705282232510,-166.313122,0.00025809,2]
[311651321,1705282232519,-620.09209323,0.0002673,2]
[311651322,1705282232529,-3478.12894861,0.00026749,2]
[311651323,1705282232539,-1325.71275877,0.000268,2]
[311651324,1705282232549,-274.36755231,0.00027,2]
[311651325,1705282232559,-2393.29348338,0.00027118,2]
[311651326,1705282232569,-155.57280123,0.00027159,2]
[311651327,1705282232579,-217.42,0.00027285,3]
[311651328,1705282232589,-294.24448796,0.00027292,2]
[311651329,1705282232599,-460.75992736,0.00027295,2]
[311651330,1705282232609,-160.80062056,0.00027295,2]
[311651331,1705282232618,-485.43117551,0.00027295,2]
[311651332,1705282232628,-252.40159392,0.00027295,2]
[311651333,1705282232638,-200.0,0.00027295,2]
[311651334,1705282232648,-2943.29386013,0.00027295,2]
[311651335,1705282232657,-296.16942876,0.00027295,2]
[311651336,1705282232666,-164.31941956,0.00027295,2]
[311651337,1705282232677,-500.0,0.00027295,2]
[311651338,1705282232687,-470.84194551,0.00027295,2]
[311651339,1705282232698,-665.55235548,0.00027295,2]
[311651340,1705282232707,-260.38964263,0.00027295,2]
[311651341,1705282232717,-1989.51321951,0.00027295,2]
[311651342,1705282232726,-1293.98334762,0.00027295,2]
[311651343,1705282232738,-2293.16748545,0.00027295,2]
[311651344,1705282232748,-569.57191408,0.00027295,2]
[311651345,1705282232757,-322.57910218,0.00027295,2]
[311651346,1705282232767,-161.73535013,0.00027295,2]
[311651347,1705282232777,-295.44289703,0.00027295,2]
[311651348,1705282232786,-204.50668989,0.00027295,2]
[311651349,1705282232797,-425.12426258,0.00027295,2]
[311651350,1705282232807,-2746.20575269,0.00027295,2]
[311651351,1705282232816,-677.45880314,0.00027295,2]
[311651352,1705282232826,-294.75959814,0.00027295,2]
[311651353,1705282232836,-848.51221584,0.00027295,2]
[311651354,1705282232845,-466.82403982,0.00027295,2]
[311651355,1705282232854,-4711.08145103,0.00027295,2]
[311651356,1705282232864,-309.84507746,0.00027295,2]
[311651357,1705282232874,-261.69539729,0.00027295,2]
[311651358,1705282232883,-677.18765749,0.00027295,2]
[311651359,1705282232894,-1840.11829615,0.00027295,2]
[311651360,1705282232905,-156.91175548,0.00027296,2]
[311651361,1705282233030,-3937.50128455,0.00027296,2]
[311651362,1705282233041,-33739.84985949,0.00027297,2]
[311651363,1705282233051,-294.24448794,0.0002736,2]
[311651364,1705282233061,-2098.68667599,0.00027392,2]
[311651365,1705282233070,-468.60119458,0.00027392,2]
[311651408,1705282238248,-155.18390716,0.00022849,2]
[311651409,1705282238258,-1110.65467737,0.00027392,2]
[311651411,1705282238267,-24129.31888939,0.00027392,2]
[311651413,1705282238276,-175.12893927,0.00027393,2]
[311651414,1705282238285,-266.50001777,0.00027393,2]
[311651415,1705282238294,-199.15609571,0.00027393,2]
[311651416,1705282238303,-246.15296593,0.00027393,2]
[311651417,1705282238312,-1733.65091026,0.00027393,2]
[311651418,1705282238322,-1195.46446057,0.00027393,2]
[311651419,1705282238331,-14764.81426658,0.00027394,2]
[311651420,1705282238340,-14060.72162897,0.00027394,2]
[311651421,1705282238349,-322.15617273,0.00027395,2]
[311651423,1705282238358,-178.45591819,0.00027395,2]
[311651425,1705282238367,-329.58887599,0.00027395,2]
[311651426,1705282238376,-344.66342161,0.00027395,2]
[311651427,1705282238386,-525.62118693,0.00027395,2]
[311651429,1705282238395,-409.92340736,0.00027395,2]
[311651431,1705282238404,-7989.60013918,0.00027396,2]
[311651433,1705282238413,-200.0,0.00027397,2]
[311651435,1705282238423,-500.0,0.00027397,2]
[311651437,1705282238432,-512.66668564,0.00027397,2]
[311651439,1705282238442,-509.93880506,0.00027397,2]
[311651441,1705282238451,-221.70878892,0.00027397,2]
[311651443,1705282238460,-509.8453058,0.00027397,2]
[311651445,1705282238469,-500.0,0.00027397,2]
[311651447,1705282238478,-500.0,0.00027397,2]
[311651449,1705282238488,-525.54838784,0.00027397,2]
[311651451,1705282238497,-200.0,0.00027397,2]
[311651453,1705282238506,-500.0,0.00027397,2]
[311651455,1705282238515,-500.0,0.00027397,2]
[311651457,1705282238524,-500.0,0.00027397,2]
[311651459,1705282238533,-500.0,0.00027397,2]
[311651461,1705282238542,-465.19455805,0.00027397,2]
[311651463,1705282238552,-500.0,0.00027397,2]
[311651465,1705282238561,-500.0,0.00027397,2]
[311651467,1705282238569,-572.34395798,0.00027397,2]
[311651469,1705282238579,-500.0,0.00027397,2]
[311651471,1705282238588,-500.0,0.00027397,2]
[311651473,1705282238597,-500.0,0.00027397,2]
[311651475,1705282238606,-500.0,0.00027397,2]
[311651476,1705282238615,-500.0,0.00027397,2]
[311651477,1705282238624,-500.0,0.00027397,2]
[311651478,1705282238634,-500.0,0.00027397,2]
[311651479,1705282238643,-500.0,0.00027397,2]
[311651481,1705282238652,-500.0,0.00027397,2]
[311651483,1705282238661,-500.0,0.00027397,2]
[311651485,1705282238671,-500.0,0.00027397,2]
[311651486,1705282238680,-500.0,0.00027397,2]
[311651488,1705282238689,-500.0,0.00027397,2]
[311651490,1705282238699,-500.0,0.00027397,2]
[311651492,1705282238709,-500.0,0.00027397,2]
[311651494,1705282238718,-403.59073251,0.00027397,2]
[311651497,1705282238727,-500.0,0.00027397,2]
[311651499,1705282238737,-500.0,0.00027397,2]
[311651510,1705282238831,-500.0,0.00027397,2]
[311651512,1705282238841,-500.0,0.00027397,2]
[311651514,1705282238851,-625.28842193,0.00027397,2]
[311651516,1705282238860,-500.0,0.00027397,2]
[311651518,1705282238869,-500.0,0.00027397,2]
[311651520,1705282238878,-500.0,0.00027397,2]
[311651522,1705282238888,-500.0,0.00027397,2]
[311651524,1705282238898,-626.60587398,0.00027397,2]
[311651526,1705282238907,-571.21160538,0.00027397,2]
[311651528,1705282238916,-500.0,0.00027397,2]
[311651530,1705282238925,-500.0,0.00027397,2]
[311651532,1705282238934,-557.89256383,0.00027397,2]
[311651534,1705282238944,-1250.48,0.00027397,2]
[311651535,1705282238953,-500.0,0.00027397,2]
[311651537,1705282238962,-500.0,0.00027397,2]
[311651538,1705282238971,-500.0,0.00027397,2]
[311651539,1705282238981,-500.0,0.00027397,2]
[311651540,1705282238990,-500.0,0.00027397,2]
[311651541,1705282239000,-502.61811935,0.00027397,2]
[311651542,1705282239010,-500.0,0.00027397,2]
[311651543,1705282239022,-500.0,0.00027397,2]
[311651544,1705282239031,-500.0,0.00027397,2]
[311651545,1705282239041,-459.31432045,0.00027397,2]
[311651546,1705282239052,-349.82002498,0.00027397,2]
[311651547,1705282239061,-484.52171501,0.00027397,2]
[311651548,1705282239070,-500.0,0.00027397,2]
[311651549,1705282239079,-500.0,0.00027397,2]
[311651550,1705282239090,-500.0,0.00027397,2]
[311651551,1705282239101,-615.79197859,0.00027397,2]
[311651552,1705282239110,-283.19708064,0.00027397,2]
[311651553,1705282239120,-500.0,0.00027397,2]
[311651554,1705282239129,-522.20027659,0.00027397,2]
[311651555,1705282239139,-508.05153115,0.00027397,2]
[311651556,1705282239148,-500.0,0.00027397,2]
[311651557,1705282239157,-500.0,0.00027397,2]
[311651558,1705282239167,-500.0,0.00027397,2]
[311651559,1705282239176,-500.0,0.00027397,2]
[311651560,1705282239185,-500.32041924,0.00027397,2]
[311651561,1705282239196,-500.0,0.00027397,2]
[311651562,1705282239206,-407.75411898,0.00027397,2]
[311651563,1705282239215,-500.0,0.00027397,2]
[311651564,1705282239224,-500.0,0.00027397,2]
[311651565,1705282239234,-500.0,0.00027397,2]
[311651566,1705282239243,-500.0,0.00027397,2]
[311651567,1705282239253,-802.02,0.00027397,2]
[311651568,1705282239263,-325.94231733,0.00027397,2]
[311651569,1705282239272,-500.0,0.00027397,2]
[311651570,1705282239282,-500.0,0.00027397,2]
[311651571,1705282239292,-614.02729468,0.00027397,2]
[311651572,1705282239302,-500.0,0.00027397,2]
[311651573,1705282239311,-500.0,0.00027397,2]
[311651574,1705282239321,-500.68671623,0.00027397,2]
[311651575,1705282239331,-500.0,0.00027397,2]
[311651576,1705282239340,-301.68649105,0.00027397,2]
[311651577,1705282239350,-500.0,0.00027397,2]
[311651578,1705282239359,-500.0,0.00027397,2]
[311651579,1705282239369,-500.0,0.00027397,2]
[311651580,1705282239378,-500.0,0.00027397,2]
[311651581,1705282239388,-500.0,0.00027397,2]
[311651582,1705282239397,-500.0,0.00027397,2]
[311651583,1705282239407,-500.0,0.00027397,2]
[311651584,1705282239417,-500.0,0.00027397,2]
[311651585,1705282239427,-500.0,0.00027397,2]
[311651586,1705282239436,-500.0,0.00027397,2]
[311651587,1705282239451,-722.05,0.00027397,2]
[311651588,1705282239460,-500.0,0.00027397,2]
[311651589,1705282239470,-500.0,0.00027397,2]
[311651590,1705282239480,-500.0,0.00027397,2]
[311651591,1705282239489,-500.0,0.00027397,2]
[311651592,1705282239498,-500.0,0.00027397,2]
[311651593,1705282239507,-500.0,0.00027397,2]
[311651594,1705282239518,-582.29,0.00027397,2]
[311651595,1705282239527,-500.0,0.00027397,2]
[311651596,1705282239536,-512.34856983,0.00027397,2]
[311651597,1705282239546,-500.0,0.00027397,2]
[311651598,1705282239556,-500.0,0.00027397,2]
[311651599,1705282239566,-2105.79,0.00027397,2]
[311651600,1705282239574,-583.1174725,0.00027397,2]
[311651601,1705282239584,-500.0,0.00027397,2]
[311651602,1705282239593,-500.0,0.00027397,2]
[311651603,1705282239603,-626.49,0.00027397,2]
[311651604,1705282239612,-500.0,0.00027397,2]
[311651605,1705282239622,-591.89,0.00027397,2]
[311651606,1705282239631,-500.0,0.00027397,2]
[311651607,1705282239640,-500.0,0.00027397,2]
[311651608,1705282239649,-500.0,0.00027397,2]
[311651609,1705282239658,-503.8784956,0.00027397,2]
[311651610,1705282239668,-500.0,0.00027397,2]
[311651611,1705282239677,-500.0,0.00027397,2]
[311651612,1705282239686,-500.0,0.00027397,2]
[311651613,1705282239698,-500.0,0.00027397,2]
[311651614,1705282239707,-500.0,0.00027397,2]
[311651615,1705282239716,-511.66889351,0.00027397,2]
[311651616,1705282239725,-500.0,0.00027397,2]
[311651617,1705282239734,-500.0,0.00027397,2]
[311651618,1705282239743,-500.0,0.00027397,2]
[311651619,1705282239753,-500.0,0.00027397,2]
[311651620,1705282239762,-500.0,0.00027397,2]
[311651621,1705282239772,-562.23813284,0.00027397,2]
[311651622,1705282239781,-500.0,0.00027397,2]
[311651623,1705282239790,-500.0,0.00027397,2]
[311651624,1705282239799,-500.0,0.00027397,2]
[311651625,1705282239808,-500.0,0.00027397,2]
[311651626,1705282239818,-500.0,0.00027397,2]
[311651627,1705282239827,-1000.0,0.00027397,2]
[311651628,1705282239837,-592.04810847,0.00027397,2]
[311651629,1705282239846,-500.0,0.00027397,2]
[311651630,1705282239854,-500.0,0.00027397,2]
[311651631,1705282239863,-500.0,0.00027397,2]
[311651632,1705282239872,-500.0,0.00027397,2]
[311651633,1705282239881,-500.0,0.00027397,2]
[311651634,1705282239891,-500.0,0.00027397,2]
[311651635,1705282239900,-500.0,0.00027397,2]
[311651636,1705282239909,-500.0,0.00027397,2]
[311651637,1705282239919,-868.93,0.00027397,2]
[311651638,1705282239928,-500.0,0.00027397,2]
[311651639,1705282239937,-500.38894424,0.00027397,2]
[311651640,1705282239948,-500.0340517,0.00027397,2]
[311651641,1705282239957,-1000.0,0.00027397,2]
[311651642,1705282239966,-500.0,0.00027397,2]
[311651643,1705282239975,-500.0,0.00027397,2]
[311651644,1705282239985,-291.61018003,0.00027397,2]
[311651645,1705282239993,-500.0,0.00027397,2]
[311651646,1705282240003,-451.74832768,0.00027397,2]
[311651647,1705282240013,-500.0,0.00027397,2]
[311651648,1705282240023,-155.0,0.00027397,2]
[311651649,1705282240033,-500.0,0.00027397,2]
[311651650,1705282240042,-500.0,0.00027397,2]
[311651651,1705282240051,-500.0,0.00027397,2]
[311651652,1705282240061,-166.15850986,0.00027397,2]
[311651653,1705282240070,-500.0,0.00027397,2]
[311651654,1705282240079,-500.0,0.00027397,2]
[311651656,1705282240089,-500.0,0.00027397,2]
[311651658,1705282240097,-500.0,0.00027397,2]
[311651660,1705282240107,-500.0,0.00027397,2]
[311651662,1705282240116,-500.0,0.00027397,2]
[311651663,1705282240125,-500.0,0.00027397,2]
[311651664,1705282240134,-540.3,0.00027397,2]
[311651666,1705282240143,-500.0,0.00027397,2]
[311651668,1705282240153,-500.0,0.00027397,2]
[311651670,1705282240162,-500.0,0.00027397,2]
[311651672,1705282240171,-500.0,0.00027397,2]
[311651674,1705282240180,-500.0,0.00027397,2]
[311651676,1705282240189,-500.0,0.00027397,2]
[311651678,1705282240201,-500.0,0.00027397,2]
[311651679,1705282240211,-500.0,0.00027397,2]
[311651680,1705282240220,-500.0,0.00027397,2]
[311651681,1705282240229,-500.0,0.00027397,2]
[311651682,1705282240238,-500.0,0.00027397,2]
[311651683,1705282240247,-500.0,0.00027397,2]
[311651684,1705282240256,-500.0,0.00027397,2]
[311651685,1705282240265,-500.0,0.00027397,2]
[311651686,1705282240274,-500.0,0.00027397,2]
[311651688,1705282240283,-500.0,0.00027397,2]
[311651690,1705282240293,-500.0,0.00027397,2]
[311651692,1705282240303,-1246.6,0.00027397,2]
[311651693,1705282240312,-10000.0,0.00027397,10]
[311651695,1705282240321,-500.0,0.00027397,2]
[311651697,1705282240330,-500.0,0.00027397,2]
[311651698,1705282240339,-500.0,0.00027397,2]
[311651699,1705282240348,-500.0,0.00027397,2]
[311651701,1705282240358,-500.0,0.00027397,2]
[311651703,1705282240367,-500.0,0.00027397,2]
[311651704,1705282240376,-500.0,0.00027397,2]
[311651705,1705282240386,-500.0,0.00027397,2]
[311651706,1705282240395,-901.19,0.00027397,2]
[311651707,1705282240405,-500.0,0.00027397,2]
[311651708,1705282240414,-500.0,0.00027397,2]
[311651709,1705282240423,-170.11902549,0.00027397,2]
[311651710,1705282240433,-605.91,0.00027397,2]
[311651712,1705282240443,-500.0,0.00027397,2]
[311651714,1705282240453,-500.0,0.00027397,2]
[311651716,1705282240461,-500.0,0.00027397,2]
[311651717,1705282240470,-500.0,0.00027397,2]
[311651719,1705282240480,-502.24841496,0.00027397,2]
[311651720,1705282240490,-500.0,0.00027397,2]
[311651721,1705282240499,-500.0,0.00027397,2]
[311651722,1705282240509,-500.0,0.00027397,2]
[311651723,1705282240518,-500.0,0.00027397,2]
[311651724,1705282240527,-500.0,0.00027397,2]
[311651725,1705282240537,-500.0,0.00027397,2]
[311651726,1705282240546,-500.0,0.00027397,2]
[311651727,1705282240555,-500.0,0.00027397,2]
[311651728,1705282240564,-500.0,0.00027397,2]
[311651729,1705282240573,-500.0,0.00027397,2]
[311651730,1705282240583,-500.0,0.00027397,2]
[311651731,1705282240592,-500.0,0.00027397,2]
[311651732,1705282240601,-500.0,0.00027397,2]
[311651733,1705282240610,-500.0,0.00027397,2]